[Event "*** Titled Tuesday Blitz"]
[Site "Chess.com"]
[Date "2020.03.03"]
[Round "4"]
[White "Parhamov"]
[Black "Witik"]
[Result "1-0"]
[WhiteElo "3046"]
[BlackElo "2643"]
[TimeControl "180+1"]
[EndTime "13:41:28 PST"]
[Termination "Parhamov won on time"]

1. e4 {[%clk 0:03:00.9]} 1... c6 {[%clk 0:02:58.2]} 2. d4 {[%clk 0:02:52.7]}
2... d5 {[%clk 0:02:57.9]} 3. exd5 {[%clk 0:02:53]} 3... cxd5 {[%clk 0:02:58.2]}
4. Bd3 {[%clk 0:02:53.9]} 4... Nc6 {[%clk 0:02:58.2]} 5. c3 {[%clk 0:02:53.8]}
5... Qc7 {[%clk 0:02:58.6]} 6. Nf3 {[%clk 0:02:51.3]} 6... Bg4 {[%clk
0:02:58.1]} 7. h3 {[%clk 0:02:50.6]} 7... Bh5 {[%clk 0:02:50.2]} 8. O-O {[%clk
0:02:47]} 8... e6 {[%clk 0:02:50.1]} 9. Re1 {[%clk 0:02:39.6]} 9... Nf6 {[%clk
0:02:38.8]} 10. Nbd2 {[%clk 0:02:39]} 10... Bd6 {[%clk 0:02:36.2]} 11. Nf1
{[%clk 0:02:38.2]} 11... O-O-O {[%clk 0:02:27.3]} 12. Bg5 {[%clk 0:02:36]} 12...
h6 {[%clk 0:02:25.7]} 13. Bh4 {[%clk 0:02:33.9]} 13... g5 {[%clk 0:02:18.3]} 14.
Bg3 {[%clk 0:02:33.8]} 14... g4 {[%clk 0:02:18.8]} 15. hxg4 {[%clk 0:02:29.8]}
15... Bxg4 {[%clk 0:02:12.5]} 16. Bh4 {[%clk 0:02:29.8]} 16... Be7 {[%clk
0:02:04]} 17. N1h2 {[%clk 0:02:29.6]} 17... Bh5 {[%clk 0:02:01.7]} 18. b4 {[%clk
0:02:24.4]} 18... Rdg8 {[%clk 0:02:00.8]} 19. Rc1 {[%clk 0:02:20.8]} 19... Ng4
{[%clk 0:01:42.4]} 20. Bg3 {[%clk 0:02:17]} 20... Nxh2 {[%clk 0:00:56.4]} 21.
Bxc7 {[%clk 0:02:16.7]} 21... Bxf3 {[%clk 0:00:49.6]} 22. Bxh2 {[%clk
0:02:06.3]} 22... Bxd1 {[%clk 0:00:29]} 23. Rcxd1 {[%clk 0:02:07.2]} 23... Kd7
{[%clk 0:00:27.9]} 24. a3 {[%clk 0:02:05.9]} 24... Bd6 {[%clk 0:00:28.2]} 25.
Bxd6 {[%clk 0:02:01.3]} 25... Kxd6 {[%clk 0:00:29.1]} 26. Re3 {[%clk 0:02:02.2]}
26... Rg5 {[%clk 0:00:23.2]} 27. Rf3 {[%clk 0:01:58.5]} 27... Ke7 {[%clk
0:00:19.6]} 28. Rh3 {[%clk 0:01:56.2]} 28... Nb8 {[%clk 0:00:18.6]} 29. f4
{[%clk 0:01:53.5]} 29... Rg4 {[%clk 0:00:16.9]} 30. f5 {[%clk 0:01:53]} 30...
Nd7 {[%clk 0:00:15.4]} 31. fxe6 {[%clk 0:01:46.6]} 31... fxe6 {[%clk 0:00:16.3]}
32. Re1 {[%clk 0:01:46.8]} 32... Rhg8 {[%clk 0:00:16]} 33. Re2 {[%clk
0:01:44.5]} 33... Rg3 {[%clk 0:00:12.2]} 34. Bf5 {[%clk 0:01:43.8]} 34... Nf8
{[%clk 0:00:10.1]} 35. Rxh6 {[%clk 0:01:42.6]} 35... Rxc3 {[%clk 0:00:09.4]} 36.
Bxe6 {[%clk 0:01:42.4]} 36... Nxe6 {[%clk 0:00:09.5]} 37. Rhxe6+ {[%clk
0:01:41.3]} 37... Kd7 {[%clk 0:00:09.8]} 38. R6e5 {[%clk 0:01:41.4]} 38... Kc6
{[%clk 0:00:08.6]} 39. a4 {[%clk 0:01:31.3]} 39... Rc4 {[%clk 0:00:08.5]} 40.
b5+ {[%clk 0:01:29.8]} 40... Kb6 {[%clk 0:00:09]} 41. Rxd5 {[%clk 0:01:29.8]}
41... Rxa4 {[%clk 0:00:09.4]} 42. Kf2 {[%clk 0:01:26.4]} 42... Rb4 {[%clk
0:00:08.6]} 43. Re6+ {[%clk 0:01:24.3]} 43... Ka5 {[%clk 0:00:08.4]} 44. b6+
{[%clk 0:01:22.1]} 44... Ka6 {[%clk 0:00:09]} 45. bxa7+ {[%clk 0:01:18.4]} 45...
Kxa7 {[%clk 0:00:09.9]} 46. Re2 {[%clk 0:01:16.1]} 46... Rf8+ {[%clk 0:00:08.5]}
47. Kg3 {[%clk 0:01:10.9]} 47... Rb3+ {[%clk 0:00:08.7]} 48. Kg4 {[%clk
0:01:11]} 48... Rg8+ {[%clk 0:00:08.1]} 49. Rg5 {[%clk 0:01:10.4]} 49... Rxg5+
{[%clk 0:00:05.5]} 50. Kxg5 {[%clk 0:01:11.3]} 50... Rd3 {[%clk 0:00:06.1]} 51.
Re4 {[%clk 0:01:10.6]} 51... b5 {[%clk 0:00:06.4]} 52. g4 {[%clk 0:01:03.5]}
52... Kb6 {[%clk 0:00:05]} 53. Kf5 {[%clk 0:01:00.1]} 53... b4 {[%clk
0:00:05.3]} 54. g5 {[%clk 0:01:00.1]} 54... b3 {[%clk 0:00:05.1]} 55. g6 {[%clk
0:00:59.4]} 55... b2 {[%clk 0:00:04.9]} 56. Re1 {[%clk 0:00:57]} 56... Rxd4
{[%clk 0:00:03.9]} 57. g7 {[%clk 0:00:53.3]} 57... Rd8 {[%clk 0:00:02.6]} 58.
Rb1 {[%clk 0:00:52.4]} 58... Kc5 {[%clk 0:00:01.7]} 59. Rxb2 {[%clk 0:00:52]}
1-0

[Event "*** Titled Tuesday Blitz"]
[Site "Chess.com"]
[Date "2020.03.03"]
[Round "4"]
[White "BeanScreen"]
[Black "northridgehawk"]
[Result "1-0"]
[WhiteElo "2652"]
[BlackElo "2265"]
[TimeControl "180+1"]
[EndTime "13:41:33 PST"]
[Termination "BeanScreen won by checkmate"]

1. e4 {[%clk 0:03:00.8]} 1... e5 {[%clk 0:02:58.9]} 2. Nf3 {[%clk 0:03:01.1]}
2... Nc6 {[%clk 0:02:59.3]} 3. Bc4 {[%clk 0:03:01.7]} 3... Nf6 {[%clk
0:02:58.9]} 4. d3 {[%clk 0:03:02]} 4... Bc5 {[%clk 0:02:59.3]} 5. c3 {[%clk
0:03:02.6]} 5... d6 {[%clk 0:02:59.3]} 6. Nbd2 {[%clk 0:03:02.9]} 6... a6 {[%clk
0:02:59.5]} 7. Bb3 {[%clk 0:03:03]} 7... Ba7 {[%clk 0:02:59.9]} 8. Nf1 {[%clk
0:03:03.4]} 8... h6 {[%clk 0:02:59.4]} 9. Ng3 {[%clk 0:03:03.6]} 9... O-O {[%clk
0:02:59.4]} 10. O-O {[%clk 0:03:03.6]} 10... Be6 {[%clk 0:02:59.8]} 11. Bxe6
{[%clk 0:03:03.2]} 11... fxe6 {[%clk 0:02:59.7]} 12. Qb3 {[%clk 0:02:58.3]}
12... Qd7 {[%clk 0:02:56.2]} 13. Bd2 {[%clk 0:02:55.3]} 13... d5 {[%clk
0:02:54.9]} 14. Rfe1 {[%clk 0:02:53.2]} 14... Kh7 {[%clk 0:02:47.5]} 15. Rad1
{[%clk 0:02:52.6]} 15... d4 {[%clk 0:02:43]} 16. cxd4 {[%clk 0:02:45.6]} 16...
exd4 {[%clk 0:02:37]} 17. Rc1 {[%clk 0:02:41.2]} 17... Ng4 {[%clk 0:02:30.3]}
18. Qc2 {[%clk 0:02:21.8]} 18... Qf7 {[%clk 0:02:25]} 19. Rf1 {[%clk 0:02:16.4]}
19... Bb6 {[%clk 0:02:22.4]} 20. h3 {[%clk 0:02:07.2]} 20... Nf6 {[%clk
0:02:19.7]} 21. Ne1 {[%clk 0:01:55.6]} 21... Qg6 {[%clk 0:02:15.8]} 22. Kh2
{[%clk 0:01:54.9]} 22... Ne5 {[%clk 0:02:04.9]} 23. f4 {[%clk 0:01:49]} 23...
Nfg4+ {[%clk 0:02:04.8]} 24. hxg4 {[%clk 0:01:48.5]} 24... Nxg4+ {[%clk
0:02:05.7]} 25. Kg1 {[%clk 0:01:48.4]} 25... Ne3 {[%clk 0:02:03.6]} 26. Bxe3
{[%clk 0:01:42.6]} 26... dxe3 {[%clk 0:01:52]} 27. Ne2 {[%clk 0:01:39.8]} 27...
Rad8 {[%clk 0:01:50.6]} 28. Nf3 {[%clk 0:01:31.8]} 28... Qg4 {[%clk 0:01:47.1]}
29. d4 {[%clk 0:01:30]} 29... Kh8 {[%clk 0:01:42.9]} 30. e5 {[%clk 0:01:22.6]}
30... Rf5 {[%clk 0:01:36.4]} 31. Qe4 {[%clk 0:01:20.4]} 31... Rh5 {[%clk
0:01:33.7]} 32. Qxe3 {[%clk 0:01:18.2]} 32... Rf8 {[%clk 0:01:28.5]} 33. Kf2
{[%clk 0:01:09.1]} 33... g5 {[%clk 0:01:23.6]} 34. Rh1 {[%clk 0:00:49.7]} 34...
Kg7 {[%clk 0:00:59.4]} 35. Rxh5 {[%clk 0:00:42.7]} 35... Qxh5 {[%clk 0:01:00.3]}
36. g3 {[%clk 0:00:22.6]} 36... Qh3 {[%clk 0:00:46.5]} 37. Rg1 {[%clk
0:00:21.9]} 37... Kg6 {[%clk 0:00:38.1]} 38. fxg5 {[%clk 0:00:21.5]} 38... h5
{[%clk 0:00:36.6]} 39. Nf4+ {[%clk 0:00:20.2]} 39... Rxf4 {[%clk 0:00:34.1]} 40.
Qxf4 {[%clk 0:00:21.1]} 40... Qg4 {[%clk 0:00:12.9]} 41. Qxg4 {[%clk 0:00:19.7]}
41... hxg4 {[%clk 0:00:13.5]} 42. Nh4+ {[%clk 0:00:17.7]} 42... Kxg5 {[%clk
0:00:13.7]} 43. Ke3 {[%clk 0:00:18.3]} 43... c5 {[%clk 0:00:13.7]} 44. Rf1
{[%clk 0:00:17.4]} 44... cxd4+ {[%clk 0:00:12.9]} 45. Kd3 {[%clk 0:00:17.8]}
45... Bc5 {[%clk 0:00:12.9]} 46. Rf6 {[%clk 0:00:17.6]} 46... Bb4 {[%clk
0:00:10.5]} 47. Rxe6 {[%clk 0:00:16.7]} 47... Be1 {[%clk 0:00:11.1]} 48. Kxd4
{[%clk 0:00:15.6]} 48... Bxg3 {[%clk 0:00:10.9]} 49. Ng2 {[%clk 0:00:15.9]}
49... Bf2+ {[%clk 0:00:10.1]} 50. Ke4 {[%clk 0:00:15.6]} 50... g3 {[%clk
0:00:09.6]} 51. Re7 {[%clk 0:00:15.3]} 51... Bc5 {[%clk 0:00:10]} 52. Rxb7
{[%clk 0:00:15.2]} 52... Kg4 {[%clk 0:00:09.7]} 53. Rg7+ {[%clk 0:00:14.7]}
53... Kh3 {[%clk 0:00:10]} 54. Kf3 {[%clk 0:00:14.3]} 54... Bd4 {[%clk
0:00:10.4]} 55. Rh7# {[%clk 0:00:14.3]} 1-0

[Event "*** Titled Tuesday Blitz"]
[Site "Chess.com"]
[Date "2020.03.03"]
[Round "4"]
[White "Msb2"]
[Black "Imre91"]
[Result "1-0"]
[WhiteElo "2877"]
[BlackElo "2743"]
[TimeControl "180+1"]
[EndTime "13:41:34 PST"]
[Termination "Msb2 won by resignation"]

1. d4 {[%clk 0:03:00.9]} 1... d5 {[%clk 0:02:57.4]} 2. Nf3 {[%clk 0:03:01.3]}
2... Nf6 {[%clk 0:02:56.9]} 3. Bf4 {[%clk 0:03:02]} 3... Bg4 {[%clk 0:02:55.2]}
4. Ne5 {[%clk 0:02:59.7]} 4... Bf5 {[%clk 0:02:54.1]} 5. e3 {[%clk 0:02:59.2]}
5... e6 {[%clk 0:02:53.5]} 6. g4 {[%clk 0:02:59.3]} 6... Bg6 {[%clk 0:02:48.8]}
7. h4 {[%clk 0:02:58.8]} 7... h6 {[%clk 0:02:47.7]} 8. Nxg6 {[%clk 0:02:57]}
8... fxg6 {[%clk 0:02:48.6]} 9. Bd3 {[%clk 0:02:56.9]} 9... Kf7 {[%clk
0:02:49.1]} 10. c4 {[%clk 0:02:54.7]} 10... dxc4 {[%clk 0:02:47.6]} 11. Bxc4
{[%clk 0:02:54.4]} 11... Nd5 {[%clk 0:02:47.6]} 12. Be5 {[%clk 0:02:49.9]} 12...
Nc6 {[%clk 0:02:46.8]} 13. Qf3+ {[%clk 0:02:41.4]} 13... Kg8 {[%clk 0:02:44.8]}
14. Qe4 {[%clk 0:02:32.5]} 14... Bb4+ {[%clk 0:02:43.8]} 15. Kf1 {[%clk
0:02:30.5]} 15... Nxe5 {[%clk 0:02:42.3]} 16. dxe5 {[%clk 0:02:30.7]} 16... Kf7
{[%clk 0:02:32.7]} 17. a3 {[%clk 0:02:28.2]} 17... Ba5 {[%clk 0:02:24.3]} 18. b4
{[%clk 0:02:04.4]} 18... Bb6 {[%clk 0:02:24.2]} 19. Rh3 {[%clk 0:01:57]} 19...
Rf8 {[%clk 0:02:09.4]} 20. Ra2 {[%clk 0:01:19.6]} 20... c6 {[%clk 0:01:47.6]}
21. Kg2 {[%clk 0:01:18.4]} 21... g5 {[%clk 0:01:39.8]} 22. h5 {[%clk 0:01:14.3]}
22... Ke7 {[%clk 0:01:36.9]} 23. Rd2 {[%clk 0:01:10.1]} 23... Qe8 {[%clk
0:01:36.9]} 24. Rh1 {[%clk 0:01:04.9]} 24... Rd8 {[%clk 0:01:35.5]} 25. Rhd1
{[%clk 0:01:04.7]} 25... Qf7 {[%clk 0:01:31.7]} 26. b5 {[%clk 0:00:53.6]} 26...
Ba5 {[%clk 0:01:16.6]} 27. bxc6 {[%clk 0:00:43.2]} 27... Bxd2 {[%clk 0:01:13.3]}
28. Rxd2 {[%clk 0:00:43.3]} 28... bxc6 {[%clk 0:01:13.5]} 29. Bd3 {[%clk
0:00:26.9]} 29... Rb8 {[%clk 0:01:07]} 30. Qd4 {[%clk 0:00:22.6]} 30... Qf3+
{[%clk 0:01:05.7]} 31. Kh2 {[%clk 0:00:23.1]} 31... Rb7 {[%clk 0:00:41.4]} 32.
Bg6 {[%clk 0:00:17.5]} 32... Kd8 {[%clk 0:00:33.4]} 33. Nc3 {[%clk 0:00:16.7]}
33... Kc8 {[%clk 0:00:30.5]} 34. Qc5 {[%clk 0:00:15.5]} 34... Kb8 {[%clk
0:00:27.7]} 35. Ne4 {[%clk 0:00:12.5]} 35... Rb1 {[%clk 0:00:24.7]} 36. Ng3
{[%clk 0:00:08.5]} 36... Rb6 {[%clk 0:00:19.1]} 37. a4 {[%clk 0:00:07.2]} 37...
Nxe3 {[%clk 0:00:16.9]} 38. Qxe3 {[%clk 0:00:06.6]} 38... Qxe3 {[%clk
0:00:15.4]} 39. fxe3 {[%clk 0:00:07.5]} 39... Rb3 {[%clk 0:00:16.1]} 40. Ne4
{[%clk 0:00:06]} 40... Rxe3 {[%clk 0:00:16.2]} 41. Nc5 {[%clk 0:00:06.6]} 41...
Rff3 {[%clk 0:00:16.4]} 42. Rd8+ {[%clk 0:00:04.7]} 42... Kc7 {[%clk 0:00:16.3]}
43. Nxe6+ {[%clk 0:00:05.6]} 43... Kb6 {[%clk 0:00:16.2]} 44. Nd4 {[%clk
0:00:04.4]} 44... Rh3+ {[%clk 0:00:15.8]} 45. Kg2 {[%clk 0:00:04.9]} 45... Rh4
{[%clk 0:00:16]} 46. Bf5 {[%clk 0:00:04.2]} 46... Ra3 {[%clk 0:00:15.4]} 47. a5+
{[%clk 0:00:04.2]} 47... Rxa5 {[%clk 0:00:14.5]} 48. e6 {[%clk 0:00:04.1]} 48...
Re5 {[%clk 0:00:14]} 49. Nf3 {[%clk 0:00:04.1]} 49... Re3 {[%clk 0:00:12.4]} 50.
Nxh4 {[%clk 0:00:03.4]} 50... gxh4 {[%clk 0:00:13.3]} 51. Rd7 {[%clk 0:00:04]}
51... Re5 {[%clk 0:00:13.9]} 52. e7 {[%clk 0:00:04.1]} 52... h3+ {[%clk
0:00:14.8]} 53. Kxh3 {[%clk 0:00:04.2]} 53... a5 {[%clk 0:00:15.7]} 54. Bg6
{[%clk 0:00:04.8]} 54... a4 {[%clk 0:00:16.6]} 55. e8=Q {[%clk 0:00:05.3]} 55...
Rxe8 {[%clk 0:00:17.4]} 56. Bxe8 {[%clk 0:00:06.2]} 1-0

[Event "*** Titled Tuesday Blitz"]
[Site "Chess.com"]
[Date "2020.03.03"]
[Round "4"]
[White "marianokar"]
[Black "GianmarcoVaR"]
[Result "0-1"]
[WhiteElo "2380"]
[BlackElo "2561"]
[TimeControl "180+1"]
[EndTime "13:41:34 PST"]
[Termination "GianmarcoVaR won on time"]

1. e4 {[%clk 0:03:00.9]} 1... c5 {[%clk 0:02:56.2]} 2. Nf3 {[%clk 0:02:56.1]}
2... d6 {[%clk 0:02:56.3]} 3. c3 {[%clk 0:02:53.6]} 3... Nf6 {[%clk 0:02:55.2]}
4. Bd3 {[%clk 0:02:52.7]} 4... Nc6 {[%clk 0:02:37.6]} 5. h3 {[%clk 0:02:49.2]}
5... d5 {[%clk 0:02:22.4]} 6. e5 {[%clk 0:02:48.7]} 6... Nd7 {[%clk 0:02:20.1]}
7. Qe2 {[%clk 0:02:47.6]} 7... e6 {[%clk 0:02:18.6]} 8. Bc2 {[%clk 0:02:45.3]}
8... b6 {[%clk 0:02:02.6]} 9. O-O {[%clk 0:02:43.8]} 9... Qc7 {[%clk 0:01:59.2]}
10. Re1 {[%clk 0:02:38.4]} 10... Be7 {[%clk 0:01:54]} 11. a3 {[%clk 0:02:33.2]}
11... a5 {[%clk 0:01:53.7]} 12. d4 {[%clk 0:02:30.8]} 12... Ba6 {[%clk
0:01:49.5]} 13. Qd1 {[%clk 0:02:28.3]} 13... O-O-O {[%clk 0:01:39.2]} 14. b4
{[%clk 0:02:09.6]} 14... Kb8 {[%clk 0:01:30.6]} 15. Nbd2 {[%clk 0:01:57.6]}
15... Rc8 {[%clk 0:01:24.2]} 16. bxc5 {[%clk 0:01:21.9]} 16... bxc5 {[%clk
0:01:23.2]} 17. Ba4 {[%clk 0:01:00.7]} 17... Ka7 {[%clk 0:01:15.4]} 18. Nb3
{[%clk 0:00:53.2]} 18... Rb8 {[%clk 0:01:06.5]} 19. Be3 {[%clk 0:00:46.2]} 19...
c4 {[%clk 0:00:49.3]} 20. Nc5 {[%clk 0:00:46.2]} 20... Nxc5 {[%clk 0:00:42.2]}
21. dxc5 {[%clk 0:00:45.9]} 21... Bb5 {[%clk 0:00:39.7]} 22. Nd4 {[%clk
0:00:38.7]} 22... Bxa4 {[%clk 0:00:37.4]} 23. Qxa4 {[%clk 0:00:38.6]} 23... Nxd4
{[%clk 0:00:30.4]} 24. Bxd4 {[%clk 0:00:38.1]} 24... Rb3 {[%clk 0:00:24.1]} 25.
c6+ {[%clk 0:00:34.9]} 25... Ka6 {[%clk 0:00:23.7]} 26. Rab1 {[%clk 0:00:31.1]}
26... Rhb8 {[%clk 0:00:23.4]} 27. Rxb3 {[%clk 0:00:30.9]} 27... Rxb3 {[%clk
0:00:23.9]} 28. Ra1 {[%clk 0:00:30]} 28... Rb5 {[%clk 0:00:23.7]} 29. Qc2 {[%clk
0:00:28.9]} 29... g6 {[%clk 0:00:22.9]} 30. Qe2 {[%clk 0:00:27.9]} 30... Qxc6
{[%clk 0:00:20.5]} 31. a4 {[%clk 0:00:27.6]} 31... Rb3 {[%clk 0:00:19.7]} 32.
Qf3 {[%clk 0:00:27.8]} 32... Qe8 {[%clk 0:00:19.6]} 33. g3 {[%clk 0:00:27.4]}
33... Rb7 {[%clk 0:00:19]} 34. h4 {[%clk 0:00:27.5]} 34... h5 {[%clk 0:00:18.7]}
35. Kg2 {[%clk 0:00:27.9]} 35... Bd8 {[%clk 0:00:18.6]} 36. Qe3 {[%clk
0:00:23.4]} 36... Bb6 {[%clk 0:00:17.5]} 37. Bxb6 {[%clk 0:00:23.6]} 37... Rxb6
{[%clk 0:00:18]} 38. Qc5 {[%clk 0:00:24.2]} 38... Qd7 {[%clk 0:00:17.1]} 39. Qf8
{[%clk 0:00:23.4]} 39... Qc7 {[%clk 0:00:16.5]} 40. Re1 {[%clk 0:00:20.3]} 40...
Rb3 {[%clk 0:00:16.4]} 41. Re3 {[%clk 0:00:18.5]} 41... Rb2 {[%clk 0:00:15.6]}
42. Rf3 {[%clk 0:00:18.5]} 42... Rb7 {[%clk 0:00:15]} 43. Kh2 {[%clk 0:00:17.9]}
43... Qe7 {[%clk 0:00:12.9]} 44. Qc8 {[%clk 0:00:15.5]} 44... Ka7 {[%clk
0:00:10.6]} 45. Qc6 {[%clk 0:00:13.2]} 45... Qc7 {[%clk 0:00:10.6]} 46. Qe8
{[%clk 0:00:12.6]} 46... d4 {[%clk 0:00:08.1]} 47. cxd4 {[%clk 0:00:12.1]} 47...
c3 {[%clk 0:00:08.6]} 48. Rxc3 {[%clk 0:00:04.3]} 48... Qxc3 {[%clk 0:00:08.1]}
49. Qd8 {[%clk 0:00:05.2]} 49... Qc7 {[%clk 0:00:08]} 50. Qf8 {[%clk 0:00:02.9]}
50... Rb2 {[%clk 0:00:08.1]} 51. Kg2 {[%clk 0:00:01.4]} 51... Qb7+ {[%clk
0:00:08.3]} 0-1

[Event "*** Titled Tuesday Blitz"]
[Site "Chess.com"]
[Date "2020.03.03"]
[Round "4"]
[White "MartinCerveny"]
[Black "cherryandmint"]
[Result "1-0"]
[WhiteElo "2626"]
[BlackElo "2848"]
[TimeControl "180+1"]
[EndTime "13:41:38 PST"]
[Termination "MartinCerveny won by resignation"]

1. d4 {[%clk 0:03:00.9]} 1... Nf6 {[%clk 0:02:59.1]} 2. c4 {[%clk 0:03:00.9]}
2... e6 {[%clk 0:02:59.2]} 3. Nc3 {[%clk 0:03:00.9]} 3... Bb4 {[%clk 0:02:59.2]}
4. e3 {[%clk 0:03:01.3]} 4... O-O {[%clk 0:02:57.5]} 5. Ne2 {[%clk 0:03:01.2]}
5... d5 {[%clk 0:02:55.7]} 6. a3 {[%clk 0:03:00.7]} 6... Be7 {[%clk 0:02:55.3]}
7. Ng3 {[%clk 0:02:59.4]} 7... c6 {[%clk 0:02:50.8]} 8. Bd2 {[%clk 0:02:57.4]}
8... Re8 {[%clk 0:02:48.3]} 9. c5 {[%clk 0:02:54.2]} 9... b6 {[%clk 0:02:43.1]}
10. b4 {[%clk 0:02:53.4]} 10... Ba6 {[%clk 0:02:31.2]} 11. Bxa6 {[%clk
0:02:44.8]} 11... Nxa6 {[%clk 0:02:32.1]} 12. O-O {[%clk 0:02:43.4]} 12... Nc7
{[%clk 0:02:26.7]} 13. f4 {[%clk 0:02:42.7]} 13... Qd7 {[%clk 0:02:17.6]} 14.
Nh5 {[%clk 0:02:25.1]} 14... Ne4 {[%clk 0:02:10.2]} 15. g4 {[%clk 0:02:04.7]}
15... Reb8 {[%clk 0:02:02.2]} 16. f5 {[%clk 0:02:02.5]} 16... Bg5 {[%clk
0:01:51.8]} 17. Qc2 {[%clk 0:01:58.2]} 17... Nxd2 {[%clk 0:01:43.5]} 18. Qxd2
{[%clk 0:01:57.6]} 18... bxc5 {[%clk 0:01:43.4]} 19. bxc5 {[%clk 0:01:55.9]}
19... Rb3 {[%clk 0:01:43.2]} 20. Qd3 {[%clk 0:01:17.1]} 20... Nb5 {[%clk
0:01:31.1]} 21. Rfc1 {[%clk 0:01:10.5]} 21... e5 {[%clk 0:01:19.4]} 22. Rab1
{[%clk 0:00:55.7]} 22... exd4 {[%clk 0:01:02.3]} 23. Rxb3 {[%clk 0:00:53.1]}
23... Bxe3+ {[%clk 0:00:41.1]} 24. Kg2 {[%clk 0:00:52.4]} 24... Bxc1 {[%clk
0:00:41]} 25. Nxb5 {[%clk 0:00:52.2]} 25... cxb5 {[%clk 0:00:41.6]} 26. Qxd4
{[%clk 0:00:51.2]} 26... f6 {[%clk 0:00:34.8]} 27. Rb1 {[%clk 0:00:46.4]} 27...
Bg5 {[%clk 0:00:32.5]} 28. Re1 {[%clk 0:00:45.8]} 28... Rc8 {[%clk 0:00:25.8]}
29. Re6 {[%clk 0:00:44.9]} 29... h6 {[%clk 0:00:22.7]} 30. Ng3 {[%clk
0:00:35.4]} 30... Kh7 {[%clk 0:00:18.9]} 31. Ne2 {[%clk 0:00:34.8]} 31... Qc7
{[%clk 0:00:17.2]} 32. c6 {[%clk 0:00:33.4]} 32... Rd8 {[%clk 0:00:14.6]} 33.
Ng1 {[%clk 0:00:29.3]} 33... Bf4 {[%clk 0:00:13.2]} 34. Nf3 {[%clk 0:00:28.1]}
34... a6 {[%clk 0:00:13.3]} 35. h4 {[%clk 0:00:27.5]} 35... Bd6 {[%clk
0:00:13.3]} 36. g5 {[%clk 0:00:26.4]} 36... Be7 {[%clk 0:00:12.4]} 37. g6+
{[%clk 0:00:23.9]} 37... Kg8 {[%clk 0:00:11.9]} 38. Qe3 {[%clk 0:00:21.6]} 38...
Bf8 {[%clk 0:00:12.1]} 39. Nd4 {[%clk 0:00:21]} 39... Qb6 {[%clk 0:00:11.7]} 40.
Kf3 {[%clk 0:00:20.4]} 40... a5 {[%clk 0:00:11.4]} 41. a4 {[%clk 0:00:15.4]}
41... bxa4 {[%clk 0:00:11.4]} 42. Nc2 {[%clk 0:00:15.3]} 42... Qxe3+ {[%clk
0:00:11.2]} 43. Nxe3 {[%clk 0:00:15.3]} 43... a3 {[%clk 0:00:11.6]} 44. Nc2
{[%clk 0:00:14.6]} 44... a2 {[%clk 0:00:11.9]} 45. c7 {[%clk 0:00:14.5]} 45...
Rc8 {[%clk 0:00:12.3]} 46. Rc6 {[%clk 0:00:15]} 46... Bb4 {[%clk 0:00:11.2]} 47.
Ke3 {[%clk 0:00:14.9]} 47... Kf8 {[%clk 0:00:11.4]} 48. Kd4 {[%clk 0:00:14.8]}
48... Ke7 {[%clk 0:00:12.1]} 49. Kxd5 {[%clk 0:00:15]} 49... Kd7 {[%clk
0:00:12.7]} 50. Rc4 {[%clk 0:00:14.6]} 50... Rxc7 {[%clk 0:00:12.8]} 51. Rxc7+
{[%clk 0:00:14.6]} 51... Kxc7 {[%clk 0:00:13.7]} 52. Ke6 {[%clk 0:00:15.5]}
52... Bc3 {[%clk 0:00:06.2]} 53. Kf7 {[%clk 0:00:14.8]} 53... a1=Q {[%clk
0:00:07.1]} 54. Nxa1 {[%clk 0:00:14.8]} 54... Bxa1 {[%clk 0:00:08]} 55. Kxg7
{[%clk 0:00:15.3]} 55... a4 {[%clk 0:00:08.9]} 56. Kh7 {[%clk 0:00:15.5]} 56...
a3 {[%clk 0:00:09.8]} 57. g7 {[%clk 0:00:16.1]} 57... Be5 {[%clk 0:00:09.7]} 58.
g8=Q {[%clk 0:00:17]} 58... a2 {[%clk 0:00:10.6]} 59. Qxa2 {[%clk 0:00:16.8]}
1-0